[Event "3rd Memorial Warakomska 2019"]
[Site "Suwalki"]
[Date "2019.08.05"]
[Round "1.4"]
[White "Budrewicz, Krzysztof"]
[Black "Markowski, Tomasz"]
[Result "0-1"]
[ECO "E16"]
[WhiteElo "2188"]
[BlackElo "2537"]
[Annotator "RC"]
[PlyCount "96"]
[EventDate "2019.08.05"]
[EventType "swiss"]
[EventCountry "POL"]
[TimeControl "40/5400+30:1800+30"]

1. d4 {[%emt 0:00:00]} e6 {[%emt 0:00:00]} 2. c4 {[%emt 0:00:00]} Nf6 {[%emt 0:00:00]} 3. Nf3 {[%emt 0:00:13]} b6 {[%emt 0:00:00]} 4. g3 {[%emt 0:00:23]} Bb7 {[%emt 0:00:00]} 5. Bg2 {[%emt 0:00:27]} Bb4+ {[%emt 0:00:00]} 6. Nbd2 {[%emt 0:01:06]} O-O {[%emt 0:00:00]} 7. O-O {[%emt 0:00:38]} Be7 {[%emt 0:00:00]} 8. b3 {[%emt 0:08:42]} d6 {[%emt 0:00:18]} 9. Bb2 {[%emt 0:00:45]} Nbd7 {[%emt 0:00:04]} 10. Qc2 {[%emt 0:00:34]} c5 {[%emt 0:00:10]} 11. Rad1 {[%emt 0:04:57]} Qc7 {[%emt 0:01:08]} 12. Qb1 {[%emt 0:03:34]} a6 {[%emt 0:00:31]} 13. h3 {[%emt 0:06:27]} b5 {[%emt 0:05:13]} 14. Rfe1 {[%emt 0:04:38]} cxd4 {[%emt 0:03:17]} 15. Nxd4 {[%emt 0:01:01]} Bxg2 {[%emt 0:00:52]} 16. Kxg2 {[%emt 0:00:05]} bxc4 {[%emt 0:03:58]} 17. Nxc4 {[%emt 0:00:11]} d5 {[%emt 0:00:07]} 18. Nd2 {[%emt 0:01:14]} Rfc8 {[%emt 0:00:08]} 19. Qa1 {[%emt 0:04:34]} Qb7 {[%emt 0:02:20]} 20. Kg1 {[%emt 0:00:37]} Bb4 {[%emt 0:02:24]} 21. Rf1 {[%emt 0:05:43]} Qb6 {[%emt 0:06:10]} 22. Kg2 {[%emt 0:02:50]} Qb7 {[%emt 0:04:36]} 23. Kg1 {[%emt 0:17:18]} h6 {[%emt 0:01:47]} 24. Nb1 {[%emt 0:04:04]} e5 {[%emt 0:05:14]} 25. Nf3 {[%emt 0:00:42]} d4 {[%emt 0:01:02]} 26. Ne1 {[%emt 0:03:40]} Nd5 {[%emt 0:10:47]} 27. Nd3 {[%emt 0:02:11]} Ba5 {[%emt 0:08:21]} 28. Na3 {[%emt 0:01:52]} Nc3 {[%emt 0:03:35]} 29. Bxc3 {[%emt 0:01:14]} Bxc3 {[%emt 0:00:02]} 30. Qb1 {[%emt 0:00:07]} e4 {[%emt 0:00:10]} 31. Nf4 {[%emt 0:00:34]} Ne5 {[%emt 0:00:12]} 32. Ng2 {[%emt 0:05:55]} Rc5 {[%emt 0:02:45]} 33. Nc2 {[%emt 0:02:24]} Rd8 {[%emt 0:04:31]} 34. Nce1 {[%emt 0:07:32]} Rcc8 {[%emt 0:03:53]} 35. f4 {[%emt 0:02:12]} Nd7 {[%emt 0:00:35]} 36. Nc2 {[%emt 0:01:04]} Nf6 {[%emt 0:01:38]} 37. Na3 {[%emt 0:00:01]} Qa7 {[%emt 0:02:52]} 38. Kh2 {[%emt 0:00:11]} Qc5 {[%emt 0:00:13]} 39. Nc4 {[%emt 0:00:00]} Qh5 {[%emt 0:00:00]} 40. g4 {[%emt 0:00:00]} Nxg4+ {[%emt 0:00:00]} 41. Kg3 {[%emt 0:15:29]} Nf6 {[%emt 0:02:14]} 42. Qc2 {[%emt 0:00:03]} Qg6+ {[%emt 0:03:03]} 43. Kh2 {[%emt 0:01:16]} Nh5 {[%emt 0:00:29]} 44. e3 {[%emt 0:01:31]} Qg3+ {[%emt 0:00:56]} 45. Kg1 {[%emt 0:00:08]} Nf6 {[%emt 0:01:29]} 46. Qf2 {[%emt 0:03:49]} Qxh3 {[%emt 0:02:23]} 47. exd4 {[%emt 0:00:07]} Ng4 {[%emt 0:03:35]} 48. Qh4 {[%emt 0:00:04]} Bxd4+ {[%emt 0:01:10]} 0-1

[Event "3rd Memorial Warakomska 2019"]
[Site "Suwalki"]
[Date "2019.08.05"]
[Round "1.11"]
[White "Sadzikowski, Daniel"]
[Black "Kiolbasa, Oliwia"]
[Result "1-0"]
[ECO "A50"]
[WhiteElo "2503"]
[BlackElo "2239"]
[Annotator "RC"]
[PlyCount "113"]
[EventDate "2019.08.05"]
[EventType "swiss"]
[EventCountry "POL"]
[TimeControl "40/5400+30:1800+30"]

1. c4 {[%emt 0:00:08]} b6 {[%emt 0:00:00]} 2. d4 {[%emt 0:00:59]} Nf6 {[%emt 0:00:00]} 3. Nc3 {[%emt 0:01:30]} Bb7 {[%emt 0:00:06]} 4. Qc2 {[%emt 0:00:35]} d5 {[%emt 0:00:15]} 5. cxd5 {[%emt 0:00:10]} Nxd5 {[%emt 0:00:07]} 6. Nf3 {[%emt 0:00:11]} e6 {[%emt 0:01:23]} 7. e4 {[%emt 0:00:23]} Nxc3 {[%emt 0:00:09]} 8. bxc3 {[%emt 0:00:02]} Be7 {[%emt 0:00:40]} 9. Bb5+ {[%emt 0:00:24]} c6 {[%emt 0:00:12]} 10. Bd3 {[%emt 0:00:02]} c5 {[%emt 0:00:40]} 11. O-O {[%emt 0:00:39]} cxd4 {[%emt 0:00:34]} 12. cxd4 {[%emt 0:00:03]} O-O {[%emt 0:00:24]} 13. Bb2 {[%emt 0:00:09]} Nc6 {[%emt 0:02:46]} 14. a3 {[%emt 0:03:46]} Rc8 {[%emt 0:00:41]} 15. Qe2 {[%emt 0:00:18]} Na5 {[%emt 0:01:42]} 16. Rad1 {[%emt 0:18:41]} Bf6 {[%emt 0:07:23]} 17. g3 {[%emt 0:20:22]} Rc7 {[%emt 0:08:31]} 18. h4 {[%emt 0:01:28]} Qa8 {[%emt 0:14:57]} 19. h5 {[%emt 0:05:31]} Rd8 {[%emt 0:05:06]} 20. h6 {[%emt 0:02:12]} gxh6 {[%emt 0:08:57]} 21. d5 {[%emt 0:02:08]} Bxb2 {[%emt 0:01:55]} 22. Qxb2 {[%emt 0:00:10]} exd5 {[%emt 0:00:17]} 23. Nd4 {[%emt 0:13:31]} Nc4 {[%emt 0:11:45]} 24. Bxc4 {[%emt 0:01:11]} dxc4 {[%emt 0:00:10]} 25. Nf5 {[%emt 0:03:43]} c3 {[%emt 0:00:15]} 26. Qe2 {[%emt 0:15:35]} f6 {[%emt 0:20:59]} 27. Qg4+ {[%emt 0:05:15]} Kh8 {[%emt 0:02:31]} 28. Qf4 {[%emt 0:01:08]} Rf7 {[%emt 0:04:19]} 29. Nd6 {[%emt 0:01:08]} Rxd6 {[%emt 0:01:05]} 30. Rxd6 {[%emt 0:00:36]} Qf8 {[%emt 0:00:40]} 31. Rc1 {[%emt 0:00:42]} Bxe4 {[%emt 0:01:35]} 32. Rxc3 {[%emt 0:00:20]} Kg7 {[%emt 0:03:17]} 33. Rd4 {[%emt 0:00:50]} Bg6 {[%emt 0:00:24]} 34. Rdc4 {[%emt 0:01:18]} Qe7 {[%emt 0:00:38]} 35. Rc7 {[%emt 0:00:32]} Qe1+ {[%emt 0:01:32]} 36. Kh2 {[%emt 0:00:03]} h5 {[%emt 0:00:46]} 37. R3c6 {[%emt 0:01:50]} Qa1 {[%emt 0:01:17]} 38. Rxf7+ {[%emt 0:00:41]} Bxf7 {[%emt 0:00:02]} 39. Rd6 {[%emt 0:00:39]} Qb2 {[%emt 0:00:26]} 40. g4 {[%emt 0:00:00]} hxg4 {[%emt 0:00:00]} 41. Qxg4+ {[%emt 0:02:08]} Kh6 {[%emt 0:09:24]} 42. Qf4+ {[%emt 0:02:53]} Kg7 {[%emt 0:01:40]} 43. Qg3+ {[%emt 0:01:14]} Kh6 {[%emt 0:02:08]} 44. Rd7 {[%emt 0:00:21]} Qb3 {[%emt 0:00:12]} 45. Rxa7 {[%emt 0:04:05]} Qxg3+ {[%emt 0:00:49]} 46. Kxg3 {[%emt 0:00:15]} Bc4 {[%emt 0:00:03]} 47. Rc7 {[%emt 0:00:05]} Bd3 {[%emt 0:03:56]} 48. Rc6 {[%emt 0:00:20]} b5 {[%emt 0:00:04]} 49. Rxf6+ {[%emt 0:00:28]} Kg5 {[%emt 0:00:06]} 50. Rd6 {[%emt 0:00:06]} Bc4 {[%emt 0:00:23]} 51. Rc6 {[%emt 0:01:27]} Be2 {[%emt 0:00:17]} 52. Rc5+ {[%emt 0:00:21]} Kf6 {[%emt 0:00:03]} 53. Kf4 {[%emt 0:00:09]} h5 {[%emt 0:00:04]} 54. Rc6+ {[%emt 0:00:10]} Ke7 {[%emt 0:00:50]} 55. Kg5 {[%emt 0:00:05]} Kd7 {[%emt 0:00:26]} 56. Rh6 {[%emt 0:00:15]} Bf3 {[%emt 0:00:19]} 57. Rf6 {[%emt 0:00:04]} 1-0

[Event "3rd Memorial Warakomska 2019"]
[Site "Suwalki"]
[Date "2019.08.05"]
[Round "1.20"]
[White "Sharankov, Grigory"]
[Black "Caspi, Israel"]
[Result "0-1"]
[ECO "A46"]
[WhiteElo "2221"]
[BlackElo "2458"]
[Annotator "RC"]
[PlyCount "64"]
[EventDate "2019.08.05"]
[EventType "swiss"]
[EventCountry "POL"]
[TimeControl "40/5400+30:1800+30"]

1. d4 {[%emt 0:00:00]} Nf6 {[%emt 0:00:00]} 2. Nf3 {[%emt 0:00:13]} d5 {[%emt 0:00:24]} 3. c4 {[%emt 0:00:15]} e6 {[%emt 0:00:26]} 4. cxd5 {[%emt 0:01:32]} exd5 {[%emt 0:00:27]} 5. Nc3 {[%emt 0:00:24]} c6 {[%emt 0:03:38]} 6. Bf4 {[%emt 0:03:34]} Bf5 {[%emt 0:08:44]} 7. e3 {[%emt 0:05:22]} Nbd7 {[%emt 0:00:25]} 8. Bd3 {[%emt 0:01:07]} Bxd3 {[%emt 0:00:54]} 9. Qxd3 {[%emt 0:00:03]} Be7 {[%emt 0:01:12]} 10. h3 {[%emt 0:00:39]} O-O {[%emt 0:05:12]} 11. O-O {[%emt 0:01:27]} Re8 {[%emt 0:01:30]} 12. Ne5 {[%emt 0:04:11]} Nxe5 {[%emt 0:02:15]} 13. Bxe5 {[%emt 0:02:43]} Bd6 {[%emt 0:01:16]} 14. Bxd6 {[%emt 0:10:37]} Qxd6 {[%emt 0:00:08]} 15. a3 {[%emt 0:01:34]} a5 {[%emt 0:02:52]} 16. Rac1 {[%emt 0:02:26]} Ne4 {[%emt 0:09:45]} 17. Nxe4 {[%emt 0:05:33]} Rxe4 {[%emt 0:00:15]} 18. Rc5 {[%emt 0:07:09]} a4 {[%emt 0:02:37]} 19. Qc3 {[%emt 0:04:38]} h5 {[%emt 0:10:12]} 20. Qb4 {[%emt 0:03:26]} Qd7 {[%emt 0:00:34]} 21. Ra5 {[%emt 0:04:32]} Rxa5 {[%emt 0:00:19]} 22. Qxa5 {[%emt 0:00:19]} b5 {[%emt 0:00:27]} 23. Rc1 {[%emt 0:08:58]} Re6 {[%emt 0:00:28]} 24. Qa8+ {[%emt 0:00:33]} Kh7 {[%emt 0:00:10]} 25. h4 {[%emt 0:06:20]} Rf6 {[%emt 0:08:06]} 26. Qa5 {[%emt 0:04:41]} Qg4 {[%emt 0:01:31]} 27. g3 {[%emt 0:03:06]} Qe2 {[%emt 0:03:03]} 28. Qe1 {[%emt 0:04:28]} Qxb2 {[%emt 0:00:20]} 29. Rc3 {[%emt 0:02:58]} g6 {[%emt 0:07:00]} 30. Rd3 {[%emt 0:01:40]} Kg7 {[%emt 0:00:25]} 31. Kg2 {[%emt 0:01:31]} Qc2 {[%emt 0:00:45]} 32. Rd2 {[%emt 0:00:36]} Qc3 {[%emt 0:00:17]} 0-1

[Event "3rd Memorial Warakomska 2019"]
[Site "Suwalki"]
[Date "2019.08.05"]
[Round "1.22"]
[White "Zaika, Daniil"]
[Black "Barski, Radoslaw"]
[Result "0-1"]
[ECO "E67"]
[WhiteElo "2216"]
[BlackElo "2468"]
[Annotator "RC"]
[PlyCount "119"]
[EventDate "2019.08.05"]
[EventType "swiss"]
[EventCountry "POL"]
[TimeControl "40/5400+30:1800+30"]

1. d4 {[%emt 0:00:00]} Nf6 {[%emt 0:00:25]} 2. c4 {[%emt 0:00:00]} g6 {[%emt 0:00:15]} 3. g3 {[%emt 0:00:02]} Bg7 {[%emt 0:00:06]} 4. Bg2 {[%emt 0:00:09]} O-O {[%emt 0:00:07]} 5. Nc3 {[%emt 0:00:11]} d6 {[%emt 0:00:10]} 6. Nf3 {[%emt 0:00:14]} Nbd7 {[%emt 0:01:08]} 7. O-O {[%emt 0:00:21]} e5 {[%emt 0:00:05]} 8. h3 {[%emt 0:01:17]} a6 {[%emt 0:00:30]} 9. Re1 {[%emt 0:12:18]} Rb8 {[%emt 0:00:55]} 10. a4 {[%emt 0:02:36]} Re8 {[%emt 0:11:11]} 11. e4 {[%emt 0:07:26]} exd4 {[%emt 0:03:00]} 12. Nxd4 {[%emt 0:00:05]} a5 {[%emt 0:01:15]} 13. Ndb5 {[%emt 0:05:29]} Nc5 {[%emt 0:03:31]} 14. Bf4 {[%emt 0:07:22]} Be6 {[%emt 0:04:59]} 15. b3 {[%emt 0:15:37]} Nfd7 {[%emt 0:05:24]} 16. Qc2 {[%emt 0:01:17]} Na6 {[%emt 0:10:52]} 17. Rad1 {[%emt 0:07:36]} Nb4 {[%emt 0:00:45]} 18. Qb1 {[%emt 0:03:10]} c6 {[%emt 0:21:54]} 19. Bxd6 {[%emt 0:17:33]} cxb5 {[%emt 0:00:16]} 20. Nxb5 {[%emt 0:00:02]} Rc8 {[%emt 0:02:50]} 21. f4 {[%emt 0:01:49]} Qb6+ {[%emt 0:03:10]} 22. Kh2 {[%emt 0:00:07]} Nf6 {[%emt 0:04:37]} 23. Bxb4 {[%emt 0:12:48]} axb4 {[%emt 0:00:08]} 24. Nd6 {[%emt 0:00:03]} h5 {[%emt 0:08:31]} 25. e5 {[%emt 0:03:31]} Nd7 {[%emt 0:01:08]} 26. Nxb7 {[%emt 0:00:19]} h4 {[%emt 0:02:55]} 27. g4 {[%emt 0:00:24]} Qf2 {[%emt 0:01:08]} 28. Qe4 {[%emt 0:00:50]} Qg3+ {[%emt 0:05:20]} 29. Kg1 {[%emt 0:00:33]} Qxb3 {[%emt 0:00:16]} 30. Nd6 {[%emt 0:00:24]} Nc5 {[%emt 0:01:19]} 31. Qb1 {[%emt 0:01:20]} Qxb1 {[%emt 0:02:30]} 32. Rxb1 {[%emt 0:00:08]} b3 {[%emt 0:00:03]} 33. Bd5 {[%emt 0:00:58]} Red8 {[%emt 0:02:34]} 34. Nxc8 {[%emt 0:00:15]} Rxc8 {[%emt 0:01:22]} 35. a5 {[%emt 0:00:18]} Rc7 {[%emt 0:00:33]} 36. Red1 {[%emt 0:00:20]} Bd7 {[%emt 0:00:42]} 37. Bf3 {[%emt 0:00:58]} g5 {[%emt 0:00:43]} 38. a6 {[%emt 0:00:23]} gxf4 {[%emt 0:01:02]} 39. Ra1 {[%emt 0:00:40]} Ra7 {[%emt 0:00:28]} 40. Ra5 {[%emt 0:00:00]} Bf8 {[%emt 0:00:00]} 41. Rb1 {[%emt 0:22:17]} Bc8 {[%emt 0:10:19]} 42. Bd1 {[%emt 0:00:30]} Bxa6 {[%emt 0:00:30]} 43. g5 {[%emt 0:05:24]} Rd7 {[%emt 0:01:34]} 44. Bxb3 {[%emt 0:00:30]} Rd3 {[%emt 0:00:35]} 45. Bc2 {[%emt 0:01:22]} Rg3+ {[%emt 0:00:32]} 46. Kf2 Bxc4 {[%emt 0:01:13]} 47. Rb8 {[%emt 0:02:27]} Ne6 {[%emt 0:01:13]} 48. Bf5 {[%emt 0:00:31]} Kg7 {[%emt 0:00:28]} 49. g6 {[%emt 0:01:06]} Bc5+ {[%emt 0:02:07]} 50. Rxc5 {[%emt 0:00:03]} Nxc5 {[%emt 0:00:04]} 51. Rb4 {[%emt 0:00:05]} Be6 {[%emt 0:00:48]} 52. Bb1 {[%emt 0:00:38]} fxg6 {[%emt 0:01:09]} 53. Rxf4 {[%emt 0:00:06]} Rb3 {[%emt 0:00:16]} 54. Bxg6 {[%emt 0:01:44]} Kxg6 {[%emt 0:01:10]} 55. Rxh4 {[%emt 0:00:04]} Kf5 {[%emt 0:00:19]} 56. Rh5+ {[%emt 0:00:25]} Kf4 {[%emt 0:00:16]} 57. Rh4+ {[%emt 0:00:06]} Kxe5 {[%emt 0:00:07]} 58. Ke2 {[%emt 0:00:20]} Ne4 {[%emt 0:00:16]} 59. Rh5+ {[%emt 0:00:58]} Kd4 {[%emt 0:00:08]} 60. Ke1 0-1

[Event "3rd Memorial Warakomska 2019"]
[Site "Suwalki"]
[Date "2019.08.05"]
[Round "1.26"]
[White "Lisowski, Krzysztof"]
[Black "Grib, Roman"]
[Result "0-1"]
[ECO "B52"]
[WhiteElo "2187"]
[BlackElo "2421"]
[Annotator "RC"]
[PlyCount "80"]
[EventDate "2019.08.05"]
[EventType "swiss"]
[EventCountry "POL"]
[TimeControl "40/5400+30:1800+30"]

1. e4 {[%emt 0:00:00]} c5 {[%emt 0:00:00]} 2. Nf3 {[%emt 0:00:00]} d6 {[%emt 0:00:00]} 3. Bb5+ {[%emt 0:01:00]} Bd7 {[%emt 0:00:11]} 4. c4 {[%emt 0:05:18]} Nc6 {[%emt 0:01:01]} 5. O-O {[%emt 0:15:47]} Nf6 {[%emt 0:09:46]} 6. d3 {[%emt 0:11:36]} g6 {[%emt 0:01:43]} 7. h3 {[%emt 0:02:54]} Bg7 {[%emt 0:02:08]} 8. Be3 {[%emt 0:01:50]} O-O {[%emt 0:01:59]} 9. Qd2 {[%emt 0:01:51]} a6 {[%emt 0:11:52]} 10. Ba4 {[%emt 0:03:48]} Qa5 {[%emt 0:11:55]} 11. Nc3 {[%emt 0:06:36]} Rfb8 {[%emt 0:05:32]} 12. Bh6 {[%emt 0:25:30]} b5 {[%emt 0:06:50]} 13. cxb5 {[%emt 0:01:27]} axb5 {[%emt 0:01:07]} 14. Bb3 {[%emt 0:00:51]} Qb4 {[%emt 0:03:02]} 15. Bc2 {[%emt 0:10:58]} Nd4 {[%emt 0:15:46]} 16. Nxd4 {[%emt 0:05:56]} Bxh6 {[%emt 0:00:19]} 17. Qxh6 {[%emt 0:00:39]} cxd4 {[%emt 0:00:03]} 18. Nd1 {[%emt 0:01:47]} Be6 {[%emt 0:00:44]} 19. a3 {[%emt 0:00:55]} Qc5 {[%emt 0:00:42]} 20. Rc1 {[%emt 0:00:19]} Rc8 {[%emt 0:00:53]} 21. f4 {[%emt 0:00:36]} Qh5 {[%emt 0:11:34]} 22. Qxh5 {[%emt 0:00:04]} Nxh5 {[%emt 0:00:03]} 23. g4 {[%emt 0:00:59]} Ng7 {[%emt 0:02:20]} 24. Nf2 {[%emt 0:00:27]} f5 {[%emt 0:00:50]} 25. Rfe1 {[%emt 0:00:39]} Kf7 {[%emt 0:00:29]} 26. Kf1 {[%emt 0:00:25]} b4 {[%emt 0:00:49]} 27. axb4 {[%emt 0:00:22]} Rab8 {[%emt 0:00:13]} 28. Bb1 {[%emt 0:00:52]} Rxc1 {[%emt 0:00:14]} 29. Rxc1 {[%emt 0:00:03]} Rxb4 {[%emt 0:00:01]} 30. Rc2 {[%emt 0:00:38]} Bb3 {[%emt 0:01:37]} 31. Rc1 {[%emt 0:00:49]} Ne6 {[%emt 0:01:24]} 32. gxf5 {[%emt 0:00:19]} gxf5 {[%emt 0:00:43]} 33. exf5 {[%emt 0:00:27]} Nxf4 {[%emt 0:00:06]} 34. Ne4 {[%emt 0:00:43]} Bd5 {[%emt 0:01:04]} 35. Ng5+ {[%emt 0:00:26]} Kf6 {[%emt 0:00:22]} 36. Nxh7+ {[%emt 0:00:30]} Kxf5 {[%emt 0:00:07]} 37. Rc2 {[%emt 0:00:06]} Kg6 {[%emt 0:01:34]} 38. Nf8+ {[%emt 0:00:16]} Kg7 {[%emt 0:00:19]} 39. Nd7 {[%emt 0:00:45]} Rb7 {[%emt 0:00:10]} 40. Rf2 {[%emt 0:00:00]} e5 {[%emt 0:00:00]} 0-1

[Event "3rd Memorial Warakomska 2019"]
[Site "Suwalki"]
[Date "2019.08.05"]
[Round "1.37"]
[White "Licznerski, Lukasz"]
[Black "Szczurek, Krzysztof"]
[Result "1-0"]
[ECO "B06"]
[WhiteElo "2328"]
[BlackElo "2104"]
[Annotator "NA RC"]
[PlyCount "93"]
[EventDate "2019.08.05"]
[EventType "swiss"]
[EventCountry "POL"]
[TimeControl "40/5400+30:1800+30"]

1. e4 {[%emt 0:00:00]} g6 {[%emt 0:00:00]} 2. d4 {[%emt 0:00:13]} Bg7 {[%emt 0:00:00]} 3. Nf3 {[%emt 0:00:03]} d6 {[%emt 0:00:07]} 4. Bc4 {[%emt 0:00:29]} Nf6 {[%emt 0:00:18]} 5. Qe2 {[%emt 0:01:16]} O-O {[%emt 0:00:49]} 6. h3 {[%emt 0:01:06]} c6 {[%emt 0:00:44]} 7. Bb3 {[%emt 0:00:36]} e5 {[%emt 0:01:53]} 8. dxe5 {[%emt 0:03:40]} dxe5 {[%emt 0:00:09]} 9. O-O {[%emt 0:08:47]} Qe7 {[%emt 0:01:39]} 10. c3 {[%emt 0:10:33]} Nbd7 {[%emt 0:03:59]} 11. Nbd2 {[%emt 0:04:02]} Nc5 {[%emt 0:02:26]} 12. Bc2 {[%emt 0:00:05]} Nh5 {[%emt 0:00:50]} 13. Nc4 {[%emt 0:01:57]} b6 {[%emt 0:11:30]} 14. b4 {[%emt 0:04:16]} Ne6 {[%emt 0:03:06]} 15. g3 {[%emt 0:01:15]} Nc7 {[%emt 0:09:33]} 16. Kg2 {[%emt 0:04:35]} Ba6 {[%emt 0:03:44]} 17. a4 {[%emt 0:12:13]} Bb7 {[%emt 0:07:03]} 18. Be3 {[%emt 0:05:58]} c5 {[%emt 0:02:15]} 19. bxc5 {[%emt 0:02:57]} bxc5 {[%emt 0:00:15]} 20. Na5 {[%emt 0:02:30]} Bc8 {[%emt 0:03:53]} 21. Rfd1 {[%emt 0:02:57]} Ne6 {[%emt 0:03:02]} 22. Rab1 {[%emt 0:03:28]} f5 {[%emt 0:09:55]} 23. exf5 {[%emt 0:11:35]} gxf5 {[%emt 0:00:18]} 24. Nxe5 {[%emt 0:06:33]} Bxe5 {[%emt 0:03:34]} 25. Qxh5 {[%emt 0:00:48]} Bxc3 {[%emt 0:02:41]} 26. Qf3 {[%emt 0:02:48]} f4 {[%emt 0:09:20]} 27. gxf4 {[%emt 0:06:16]} Bxa5 {[%emt 0:03:17]} 28. Qxa8 {[%emt 0:00:00]} Nxf4+ {[%emt 0:00:43]} 29. Kh1 {[%emt 0:02:15]} Bxh3 {[%emt 0:01:33]} 30. Rg1+ {[%emt 0:00:51]} Ng6 {[%emt 0:03:49]} 31. Qe4 {[%emt 0:00:53]} Qxe4+ {[%emt 0:05:28]} 32. Bxe4 {[%emt 0:00:02]} Bb4 {[%emt 0:00:09]} 33. Rbc1 {[%emt 0:01:00]} Bf5 {[%emt 0:03:09]} 34. Bd5+ {[%emt 0:00:27]} Kg7 {[%emt 0:00:08]} 35. Bxc5 {[%emt 0:00:18]} Bxc5 {[%emt 0:02:33]} 36. Rxc5 {[%emt 0:00:02]} Kf6 {[%emt 0:00:08]} 37. Rc7 {[%emt 0:01:12]} Ke5 {[%emt 0:00:29]} 38. Bg2 {[%emt 0:00:16]} Nf4 {[%emt 0:00:46]} 39. Rxa7 {[%emt 0:00:28]} Rf6 {[%emt 0:01:23]} 40. Re1+ {[%emt 0:00:00]} Kd4 {[%emt 0:00:00]} 41. Rd1+ {[%emt 0:04:58]} Nd3 {[%emt 0:01:57]} 42. a5 {[%emt 0:16:12]} Ke5 {[%emt 0:01:00]} 43. Rd2 {[%emt 0:03:20]} Kf4 {[%emt 0:03:40]} 44. a6 {[%emt 0:03:45]} Rh6+ {[%emt 0:01:41]} 45. Kg1 {[%emt 0:00:01]} Rg6 {[%emt 0:00:08]} 46. Rxd3 {[%emt 0:00:48]} Bxd3 {[%emt 0:00:10]} 47. Rf7+ 1-0

[Event "3rd Memorial Warakomska 2019"]
[Site "Suwalki"]
[Date "2019.08.05"]
[Round "1.38"]
[White "Hoffmann, Yair"]
[Black "Zylka, Stanislaw"]
[Result "0-1"]
[ECO "D93"]
[WhiteElo "2099"]
[BlackElo "2308"]
[Annotator "NA RC"]
[PlyCount "96"]
[EventDate "2019.08.05"]
[EventType "swiss"]
[EventCountry "POL"]
[TimeControl "40/5400+30:1800+30"]

1. d4 {[%emt 0:00:00]} Nf6 {[%emt 0:00:00]} 2. c4 {[%emt 0:00:00]} g6 {[%emt 0:00:03]} 3. Nc3 {[%emt 0:00:15]} d5 {[%emt 0:00:09]} 4. Nf3 {[%emt 0:00:10]} Bg7 {[%emt 0:00:08]} 5. Bf4 {[%emt 0:00:11]} O-O {[%emt 0:00:16]} 6. e3 {[%emt 0:00:22]} c5 {[%emt 0:00:41]} 7. dxc5 {[%emt 0:00:24]} Qa5 {[%emt 0:00:21]} 8. Rc1 {[%emt 0:00:46]} dxc4 {[%emt 0:02:14]} 9. Bxc4 {[%emt 0:00:59]} Nc6 {[%emt 0:01:37]} 10. O-O {[%emt 0:00:52]} Qxc5 {[%emt 0:00:28]} 11. Bb3 {[%emt 0:01:12]} Qa5 {[%emt 0:00:23]} 12. h3 {[%emt 0:00:37]} Bf5 {[%emt 0:05:55]} 13. Qe2 {[%emt 0:06:27]} Qb4 {[%emt 0:01:31]} 14. g4 {[%emt 0:23:12]} Bd7 {[%emt 0:05:48]} 15. Rfd1 {[%emt 0:03:10]} Rad8 {[%emt 0:12:38]} 16. Bc7 {[%emt 0:03:30]} Rc8 {[%emt 0:00:29]} 17. Bg3 {[%emt 0:00:09]} h6 {[%emt 0:05:08]} 18. e4 {[%emt 0:03:21]} Be6 {[%emt 0:10:40]} 19. e5 {[%emt 0:05:58]} Nh7 {[%emt 0:03:10]} 20. Nd5 {[%emt 0:04:06]} Bxd5 {[%emt 0:00:23]} 21. Bxd5 {[%emt 0:00:53]} Nd4 {[%emt 0:06:17]} 22. Nxd4 {[%emt 0:04:18]} Rxc1 {[%emt 0:00:28]} 23. Rxc1 {[%emt 0:00:32]} Qxd4 {[%emt 0:00:08]} 24. Rd1 {[%emt 0:01:34]} Qb6 {[%emt 0:00:52]} 25. h4 {[%emt 0:00:33]} Rd8 {[%emt 0:09:03]} 26. Bb3 {[%emt 0:05:25]} Rxd1+ {[%emt 0:03:36]} 27. Qxd1 {[%emt 0:00:16]} Nf8 {[%emt 0:01:03]} 28. Kg2 {[%emt 0:03:02]} e6 {[%emt 0:04:28]} 29. Qd3 {[%emt 0:06:31]} Qc6+ {[%emt 0:01:52]} 30. Qf3 {[%emt 0:04:13]} Qc7 {[%emt 0:01:17]} 31. Qe3 {[%emt 0:01:03]} Nd7 {[%emt 0:00:25]} 32. f4 {[%emt 0:00:31]} b5 {[%emt 0:02:14]} 33. g5 {[%emt 0:03:34]} h5 {[%emt 0:00:34]} 34. Bf2 {[%emt 0:00:38]} a6 {[%emt 0:00:55]} 35. Qe4 {[%emt 0:02:59]} Qc8 {[%emt 0:09:00]} 36. Bd1 {[%emt 0:00:48]} Bf8 {[%emt 0:00:26]} 37. Bf3 {[%emt 0:01:21]} Qc1 {[%emt 0:01:07]} 38. Qc6 {[%emt 0:02:31]} Qd2 {[%emt 0:04:03]} 39. Kg3 {[%emt 0:00:28]} Kg7 {[%emt 0:01:24]} 40. b3 {[%emt 0:00:00]} Ba3 {[%emt 0:00:00]} 41. Qxa6 {[%emt 0:08:01]} Bc5 {[%emt 0:09:49]} 42. Bxc5 {[%emt 0:02:41]} Nxc5 {[%emt 0:00:08]} 43. Qb6 {[%emt 0:02:20]} Nd3 {[%emt 0:00:40]} 44. Qd4 {[%emt 0:00:40]} b4 {[%emt 0:00:36]} 45. Bb7 {[%emt 0:01:36]} Qc3 {[%emt 0:01:45]} 46. Qd8 {[%emt 0:03:58]} Nxe5+ {[%emt 0:03:30]} 47. Kg2 {[%emt 0:00:14]} Ng4 {[%emt 0:00:35]} 48. Kf1 {[%emt 0:00:58]} Qe3 {[%emt 0:01:15]} 0-1

[Event "3rd Memorial Warakomska 2019"]
[Site "Suwalki"]
[Date "2019.08.05"]
[Round "1.39"]
[White "Kulon, Klaudia"]
[Black "Klimkowski, Jan"]
[Result "1-0"]
[ECO "A30"]
[WhiteElo "2331"]
[BlackElo "1985"]
[Annotator "NA RC"]
[PlyCount "65"]
[EventDate "2019.08.05"]
[EventType "swiss"]
[EventCountry "POL"]
[TimeControl "40/5400+30:1800+30"]

1. c4 {[%emt 0:00:00]} c5 {[%emt 0:00:00]} 2. g3 {[%emt 0:00:00]} Nc6 {[%emt 0:00:00]} 3. Bg2 {[%emt 0:00:00]} g6 {[%emt 0:00:02]} 4. e3 {[%emt 0:00:13]} Bg7 {[%emt 0:00:17]} 5. Ne2 {[%emt 0:00:16]} e5 {[%emt 0:00:21]} 6. Nbc3 {[%emt 0:00:39]} Nge7 {[%emt 0:00:28]} 7. a3 {[%emt 0:02:20]} d6 {[%emt 0:02:48]} 8. Rb1 {[%emt 0:00:55]} a5 {[%emt 0:00:35]} 9. O-O {[%emt 0:01:06]} O-O {[%emt 0:00:55]} 10. h3 {[%emt 0:00:19]} Be6 {[%emt 0:01:33]} 11. Nd5 {[%emt 0:00:15]} f5 {[%emt 0:01:49]} 12. d3 {[%emt 0:00:57]} Kh8 {[%emt 0:03:27]} 13. Bd2 {[%emt 0:04:29]} g5 {[%emt 0:04:29]} 14. f4 {[%emt 0:05:33]} Ng6 {[%emt 0:06:00]} 15. fxg5 {[%emt 0:01:53]} Rb8 {[%emt 0:02:25]} 16. h4 {[%emt 0:00:49]} e4 {[%emt 0:08:39]} 17. dxe4 {[%emt 0:13:02]} fxe4 {[%emt 0:04:40]} 18. Rxf8+ {[%emt 0:01:56]} Qxf8 {[%emt 0:01:45]} 19. h5 {[%emt 0:01:41]} Nge7 {[%emt 0:01:18]} 20. Nef4 {[%emt 0:02:05]} Bf5 {[%emt 0:01:35]} 21. g4 {[%emt 0:01:39]} Bc8 {[%emt 0:01:19]} 22. Bxe4 {[%emt 0:03:30]} Ne5 {[%emt 0:06:33]} 23. h6 {[%emt 0:02:06]} Bxg4 {[%emt 0:01:04]} 24. Qf1 {[%emt 0:02:49]} Bxh6 {[%emt 0:02:42]} 25. gxh6 {[%emt 0:00:21]} Qxh6 {[%emt 0:03:21]} 26. Nxe7 {[%emt 0:02:24]} Qg5 {[%emt 0:00:15]} 27. Qg2 {[%emt 0:00:29]} Qxe7 {[%emt 0:00:08]} 28. Bc3 {[%emt 0:00:20]} Be6 {[%emt 0:02:06]} 29. Kf2 {[%emt 0:03:05]} Rg8 {[%emt 0:04:07]} 30. Qh2 {[%emt 0:00:10]} Qf7 {[%emt 0:02:29]} 31. Qxh7+ {[%emt 0:01:59]} Qxh7 {[%emt 0:00:52]} 32. Bxh7 {[%emt 0:00:02]} Kxh7 {[%emt 0:01:21]} 33. Bxe5 {[%emt 0:00:08]} 1-0